Cogmind - Beta 14 @@@ ROGUE MODE // 2024.12.21 @ 01:10:16 Player: sercli123 Result: Destroyed self via exploding Fusion Modulator Performance ------------- Evolutions (0) 0 Regions Visited (1) 200 Robots Destroyed (14) 70 Value Destroyed (459) 459 Prototype IDs (0) 0 Alien Tech Used (0) 0 Bonus (0) 0 TOTAL SCORE: 729 Bonus ------- None Cogmind --------- Core Integrity 0/250 Matter 300/300 Energy 125/125 System Corruption 2% Temperature Cool (36) Movement Treading (160) Location -10/Materials Parts ------- > --- POWER (1) -------- Light Ion Engine > --- PROPULSION (2) --- Light Treads > --- UTILITY (2) ------ Small Storage Unit Hacking Suite > --- WEAPON (2) ------- Small Laser > --- INVENTORY (8) ---- VTOL Module VTOL Module VTOL Module VTOL Module Improved Heat Sink Medium Matter Pod (100) Weight Redist. System Hacking Suite Peak State ------------ > --- POWER ------------ Light Ion Engine > --- PROPULSION ------- Light Treads Wheel > --- UTILITY ---------- Improved Heat Sink Hacking Suite > --- WEAPON ----------- Small Laser Particle Gun > --- INVENTORY -------- Aluminum Leg Small Storage Unit Medium Matter Pod Hacking Suite [Rating: 12] Favorites ----------- Power Light Ion Engine Engine Light Ion Engine Propulsion Wheel Treads Light Treads Leg Aluminum Leg Wheel Wheel Utility Small Storage Unit Device Improved Heat Sink Storage Small Storage Unit Hackware Hacking Suite Weapon Particle Gun Energy Gun Particle Gun Ballistic Gun Assault Rifle Build | -11 -10 ------- Run | Yrd Mat Slots Evolved . | . . Power . | . . Propulsion . | . . Utility . | . . Weapon . | . . Parts Attached 23 | 7 16 Power 2 | 1 1 Engine 2 | 1 1 Core . | . . Reactor . | . . Propulsion 12 | 2 10 Treads 3 | . 3 Leg 3 | 1 2 Wheel 6 | 1 5 Hover . | . . Flight . | . . Utility 4 | 1 3 Device 1 | . 1 Storage 2 | 1 1 Processor . | . . Hackware 1 | . 1 Protection . | . . Artifact . | . . Weapon 5 | 3 2 Energy Gun 3 | 1 2 Energy Cannon . | . . Ballistic Gun 2 | 2 . Ballistic Cannon . | . . Launcher . | . . Special Weapon . | . . Impact Weapon . | . . Slashing Weapon . | . . Piercing Weapon . | . . Special Melee Weapon . | . . Unidentified Prototypes . | . . Parts Lost 6 | . 6 Power 1 | . 1 Propulsion 2 | . 2 Utility . | . . Weapon 3 | . 3 Highest Loss Streak 3 | . 3 To Critical Strikes . | . . Average Slot Usage (%) 97 | . 97 Engine 13 | . 13 Treads 11 | . 11 Leg 4 | . 4 Wheel 12 | . 12 Storage 13 | . 13 Hackware 13 | . 13 Energy Gun 22 | . 22 Ballistic Gun 4 | . 4 Peak Build Rating 12 | 6 12 Average Rating 9 | 3 10 On Entrance 3 | . 6 Naked Turns . | . . Heaviest Build 13 | 12 13 Greatest Support 20 | 10 20 Greatest Overweight (x) 1 | 1 1 Average Overweight (x) . | . . Largest Inventory Capacity 8 | 8 8 Average Capacity 7 | 6 7 Most Carried 8 | 5 8 Average Carried 5 | 2 5 Final Capacity 8 | 8 8 Final Carried 8 | 1 8 Class Distribution -------------------- 57% | Scavenger-Mutant 42% | Mutant Dominant Class ---------------- Scavenger-Mutant | -10/Materials Resources | -11 -10 ----------- Run | Yrd Mat Matter Collected 548 | 236 312 Remotely . | . . Salvage Created 526 | . 526 Parts 30 | . 30 Haulers Intercepted 1 | . 1 Recyclers Shooed . | . . Parts Field Recycled . | . . Retrieved Matter . | . . Parts Self-Destructed . | . . Prevented . | . . Kills | -11 -10 ------- Run | Yrd Mat Combat Hostiles Destroyed 10 | . 10 Guns 8 | . 8 AOE 2 | . 2 Classes Destroyed 4 | . 4 Hauler 1 | . 1 Operator 2 | . 2 Watcher 1 | . 1 Grunt 10 | . 10 Best Kill Streak 2 | . 2 Combat Bots Only 2 | . 2 Max Kills in Single Turn 1 | . 1 Gunslinging . | . . Exploded 1 | . 1 Melee . | . . Uniques/NPCs Destroyed . | . . Combat | -11 -10 -------- Run | Yrd Mat Hostile Shots Fired 68 | . 68 Missed 18 | . 18 Damage Taken 931 | . 931 Core 285 | . 285 Absorbed by Shields . | . . Core Remaining (%) 100 | 100 . Volleys Fired 58 | . 58 Largest 2 | . 2 Hottest 105 | . 105 Shots Fired 111 | . 111 Gun 111 | . 111 Cannon . | . . Launcher . | . . Special . | . . Kinetic 23 | . 23 Thermal 60 | . 60 Explosive . | . . Electromagnetic 28 | . 28 Robot Hit Streak 9 | . 9 Robot Miss Streak 3 | . 3 Penetration Max . | . . Secondary Targets . | . . Shots Hit Robots 72 | . 72 Core Hits 22 | . 22 Critical Kills . | . . Critical Parts Destroyed 1 | . 1 Critical Strikes 2 | . 2 Burn 1 | . 1 Destroy 1 | . 1 Melee Attacks . | . . Impact . | . . Slashing . | . . Piercing . | . . Sneak Attacks . | . . Combat Hostiles . | . . Follow-up Attacks . | . . Damage Inflicted 1142 | . 1142 Guns 979 | . 979 Cannons . | . . Explosions 154 | . 154 Melee . | . . Ramming 9 | . 9 Kinetic 177 | . 177 Thermal 671 | . 671 Explosive . | . . Electromagnetic 285 | . 285 Impact . | . . Slashing . | . . Piercing . | . . Highest Corruption 2 | . 2 Average Corruption 1 | . 1 Corruption Purged . | . . Corruption Blocked . | . . Effects 11 | . 11 Message Errors 2 | . 2 Matter Fused 5 | . 5 Heat Flow Errors 1 | . 1 Energy Discharges 1 | . 1 Data Loss (minor) 1 | . 1 Weapon Failures 1 | . 1 Overload Shots . | . . Overflow Damage 110 | . 110 Projectiles . | . . Explosions 110 | . 110 Melee . | . . Knockbacks . | . . Impact . | . . Kinetic . | . . Secondary . | . . Self-Inflicted Damage 296 | . 296 Shots 5 | . 5 Rammed 2 | . 2 Targets Rammed 2 | . 2 Kicked . | . . Crushed . | . . Highest Temperature 235 | . 235 Average Temperature 61 | . 61 Received Heat Transfer 405 | . 405 Siege Activations . | . . Robots Corrupted . | . . Combat Hostiles . | . . Parts Fried 2 | . 2 Impact Corruptions . | . . Robots Melted 1 | . 1 Combat Hostiles . | . . Parts Melted 4 | . 4 Heat Transferred 1476 | . 1476 Parts Sabotaged . | . . Parts Stolen . | . . Parts Stripped . | . . Power Chain Reactions 2 | . 2 Alert | -11 -10 ------- Run | Yrd Mat Peak Influence 305 | . 305 Initial . | . . Average 127 | . 134 Maximum Alert Level 1 | . 1 Low Security (%) 81 | 100 80 Level 1 18 | . 19 Level 2 . | . . Level 3 . | . . Level 4 . | . . Level 5 . | . . High Security . | . . Max Security . | . . Squads Dispatched 4 | . 4 Investigation 2 | . 2 Extermination . | . . Reinforcement 2 | . 2 Assault . | . . Garrison . | . . Intercept . | . . Searches Triggered . | . . Construction Impeded . | . . Haulers Reinforced . | . . Active Scanning Responses . | . . Cargo Convoy Interrupts . | . . Stealth | -11 -10 --------- Run | Yrd Mat Distress Signals . | . . Communications Jammed . | . . Distress Signals . | . . Times Spotted 18 | . 18 Peak Tracking Total 3 | . 3 Tactical Retreats 2 | . 2 Traps | -11 -10 ------- Run | Yrd Mat Traps Triggered 1 | . 1 Indirectly . | . . Trap Hack Attempts . | . . Triggered . | . . Disarmed . | . . Reprogrammed . | . . Reused . | . . Traps Extracted . | . . Installed . | . . Triggered . | . . Machines | -11 -10 ---------- Run | Yrd Mat Machines Disabled 3 | . 3 Max in Single Turn 3 | . 3 Machines Repaired . | . . Machines Dismantled . | . . Machines Sabotaged . | . . Overloaded Fab Kills . | . . Hacking | -11 -10 --------- Run | Yrd Mat Machines Accessed 5 | . 5 Terminals 5 | . 5 Fabricators . | . . Repair Stations . | . . Recycling Units . | . . Scanalyzers . | . . Garrison Access . | . . Total Hacks 27 | . 27 Successful 15 | . 15 Failed 12 | . 12 Catastrophic 2 | . 2 Database Lockouts . | . . Manual 18 | . 18 Terminals 27 | . 27 Fabricators . | . . Repair Stations . | . . Recycling Units . | . . Scanalyzers . | . . Garrison Access . | . . Terminal Hacks 5 | . 5 Robot Analysis 1 | . 1 Dispatch Records 1 | . 1 Recall Investigation 2 | . 2 Zone Layout 1 | . 1 Fabricator Hacks . | . . Repair Station Hacks . | . . Recycling Unit Hacks . | . . Scanalyzer . | . . Garrison Access Hacks . | . . Unauthorized Hacks 9 | . 9 Terminals 9 | . 9 Botnet 5 | . 5 Skim 4 | . 4 Fabricators . | . . Repair Stations . | . . Recycling Units . | . . Scanalyzers . | . . Garrison Access . | . . Data Cores Recovered 1 | . 1 Used 1 | . 1 Hacking Detections 5 | . 5 Full Trace Events 4 | . 4 Feedback Events 1 | . 1 Corruption 1 | . 1 Feedback Blocked . | . . Robot Schematics Acquired . | . . Robots Built . | . . Authchips . | . . Time . | . . Total Robot Build Rating . | . . Part Schematics Acquired . | . . Parts Built . | . . Authchips . | . . Time . | . . Total Part Build Rating . | . . Parts Repaired . | . . Time . | . . Parts Recycled . | . . Recycled Matter . | . . Retrieved Matter . | . . Retrieved Components . | . . Parts Scanalyzed . | . . Part Schematics Acquired . | . . Parts Damaged . | . . Bothacking | -11 -10 ------------ Run | Yrd Mat Used RIF Installer . | . . Robots Hacked . | . . Non-combat . | . . Combat . | . . Robot Hacks Applied . | . . Relay Couplers Released . | . . Fabnet Peak Effective % . | . . Robots Rewired . | . . Allies Hacked . | . . Hacks Repelled . | . . Allies | -11 -10 -------- Run | Yrd Mat Total Allies . | . . Largest Group . | . . Highest-Rated Group . | . . Highest-Rated Ally . | . . Total Orders . | . . Ally Attacks . | . . Total Damage . | . . Kills . | . . Allies Corrupted . | . . Allies Melted . | . . Intel | -11 -10 ------- Run | Yrd Mat Robot Analysis Total 1 | . 1 Derelict Logs Recovered . | . . Drone Launches . | . . Drone Recoveries . | . . Exploration | -11 -10 ------------- Run | Yrd Mat Turns Passed 893 | 46 847 Spaces Moved 605 | 43 562 Core 20 | 20 . Treads 51 | . 51 Legs 24 | . 24 Wheels 510 | 23 487 Hover . | . . Flight . | . . Fastest Speed 50 | 50 80 Average Speed 102 | 73 104 Slowest Speed 190 | 95 190 Overloaded Moves . | . . Propulsion Burnouts . | . . Robots Hopped . | . . Cave-ins Triggered . | . . Exploration Rate (%) 36 | 4 68 Regions Visited 1 Branch Regions . Pre-discovered Areas . | . . Known Exits Taken . | . . Unknown Exits Taken 1 | 1 . Scrap Searched . | . . Spaces Dug . | . . Terrain Destroyed 55 | . 55 Melee . | . . Projectile . | . . AOE 55 | . 55 Terrain Rammed . | . . Walls Destroyed . | . . Machines Disabled . | . . Actions | -11 -10 --------- Run | Yrd Mat Total 763 | 56 707 Wait 47 | . 47 Move 604 | 42 562 Hop . | . . Pick Up 23 | 6 17 Fast Attach 3 | 2 1 Attach 9 | 5 4 Detach . | . . Swap 11 | . 11 Drop 6 | 1 5 Fire 58 | . 58 Melee . | . . Ram 1 | . 1 Kick . | . . Crush 1 | . 1 Escape Stasis . | . . Rewire . | . . Trap . | . . Miscellaneous . | . . Route ------- -11/Scrapyard -10/Materials (discovered 4 exits: [*Mat x2] / [*Min x2]) History --------- Turn | Location | Event 14 | -11/Scrapyard | Discovered new exit (range 15) 47 | -11/Scrapyard | Entered Materials 221 | -10/Materials | Discovered new exit (range 13) 308 | -10/Materials | Build established: Mutant 384 | -10/Materials | Core integrity fell below 50% 424 | -10/Materials | Lost 3 parts (1p1n1w) 486 | -10/Materials | Discovered new exit (range 4) 682 | -10/Materials | Build established: Scavenger-Mutant 693 | -10/Materials | Discovered new exit (range 4) 852 | -10/Materials | Discovered new exit (range 11) 894 | -10/Materials | Destroyed self via exploding Fusion Modulator Last Messages --------------- 00673_ Heat Sink melted. 00673_ G-34 Mercenary destroyed. 00676_ Acquired 5 matter. 00693_ EXIT=FOUND 00699_ System corrupted: Sml. Laser failed to cycle. 00706_ System corrupted: Energy discharge (-47). 00744_ K-01 Serf collects debris. 00767_ K-01 Serf cleans the Neutrino Reactor. 00817_ YUB YSV AXCH1HE7N>FMJGP>80<= Y85TEF4HT 00825_ Slammed into K-01 Serf. 00837_ System corrupted: Heat flow error (+241). 00852_ EXIT=FOUND 00874_ K-01 Serf cleans the Fusion Modulator. 00879_ System corrupted: Matter fused (-5). 00894_ Fusion Modulator explodes. 00894_ Wheel destroyed. 00894_ Destroyed Wheel. 00894_ Fusion Modulator explodes. 00894_ Particle Gun destroyed. 00894_ Destroyed Particle Gun. Map ----- +----------------------------------------------------+ | ?????????????# # | | ?????????????# ! # """"""" | | ?????????????#########+# """"""" | | ????????????????# # # """"""" | | ????????????????# == # # """"%"" | | ????????????????# == # # """"%"" | | ????????????????# = # # % | | ????????????????# < # ######+## | | ????????????????# # #### !* | | ?????????#?###### # | | ?????????# # + ! | | ?????????# """ =# # | | ?????????# """ ########+## | | ?????????# """ #??# ## # | | ?????????# """ #??# ## # | | ?????????# #??# ## # | | ???###?#######+##### ## # | | #### ## ## ## # | | ;;;;;;;# ######### | | ; # % | | ; # ###+############ | | ; ; k# ?????????# | | # [ """#???????# | | a # """#?????#####+## | | # """#?????# | | @ # #?????# | | # #?????# | | ########?????# | | #????????????# | | < #????????????# | | #????????????# | | ; ;;###????????????# | | ;;;;;;;; #??????????????######## | | ## # ###?????????????????????? | | ?######????????????????????????? | | ???????????????????????????????? | | | | | | | | | | | | | | | | | | | | | | | | | | | | | +----------------------------------------------------+ Best States ------------- Heat Dissipation 39 Energy Generation 10 Energy Capacity 125 Matter Stores 300 Matter Capacity 300 Sight Range 16 Terrain Scan Density 10 Evasion (%) 50 Recoil Reduction 1 Offensive Hacking 10 Item Schematics ----------------- None Robot Schematics ------------------ None Fabricated ------------ Nothing Alien Tech Used ----------------- None Achievements -------------- Quantum Hacking Challenges ------------ None Game ------ Seed SmartbombTowerRedistributor Manual? 0 Play Time 00:25:58 Cumulative 64.9 hours Start 2024.12.20 @ 17:37:14 End 2024.12.21 @ 01:10:16 Sessions 1 Manual Loads 0 Difficulty Rogue Special Mode None Game No. 29 Rogue 29 Adventurer 0 Explorer 0 Win Type - Total 0 Types 0/0/0/0/0/0/0/0/0 Lore% 21 Gallery% 35 Achievement% 33 Wizard Run 0 Options --------- Layout 0 ASCII 0 Keyboard 0 Movement Mouse Keybinds 0 Fullscreen 2 Font 18/SmallcapsGlow Map View 38x25 Zoom Use 99% Tactical HUD 1 Map Filters NONE Filters NONE Steam 1 RUN: df7e2abb-fe58-4c36-89fb-2727a2a34ffb